Cogmind - Beta 14 @@@ ROGUE MODE // 2024.11.16 @ 19:50:56 Player: Arzon Result: Destroyed by D-53 Grenadier with Mini Grenade Launcher Performance ------------- Evolutions (1) 500 Regions Visited (4) 800 Robots Destroyed (50) 250 Value Destroyed (1182) 1182 Prototype IDs (8) 160 Alien Tech Used (0) 0 Bonus (216) 216 TOTAL SCORE: 3108 Bonus ------- High Alert Combat Kills 151 Follower Combat Kills 133 Friendly Fire -68 Cogmind --------- Core Integrity 0/400 Matter 298/300 Energy 139/265 System Corruption 0% Temperature Cool (0) Movement Core (550) Ox10 Location -9/Mines Parts ------- > --- POWER (1) -------- Improved Ion Engine > --- PROPULSION (2) --- (None) > --- UTILITY (4) ------ Large Storage Unit Signal Interpreter Hacking Suite > --- WEAPON (2) ------- Advanced Beam Rifle Advanced Beam Rifle > --- INVENTORY (15) --- Reinforced Ion Engine Improved Treads Makeshift Leg High-capacity Battery (250) Targeting Computer Targeting Computer Medium Armor Plating Advanced Beam Rifle Advanced Beam Cannon Ion Cannon Ion Cannon Datajack Plasma Cutter Peak State ------------ > --- POWER ------------ Improved Ion Engine > --- PROPULSION ------- Improved Treads Improved Flight Unit > --- UTILITY ---------- Cooling System Large Storage Unit Signal Interpreter Hacking Suite > --- WEAPON ----------- Ion Cannon Ion Cannon > --- INVENTORY -------- Ion Engine Light Treads Light Treads Improved Treads Makeshift Leg High-capacity Battery Advanced Beam Rifle Advanced Beam Rifle Advanced Beam Rifle Advanced Beam Cannon Ion Cannon Ion Cannon Improved Assault Rifle Datajack Plasma Cutter [Rating: 23] Favorites ----------- Power Ion Engine Engine Ion Engine Propulsion Improved Treads Treads Improved Treads Leg Aluminum Leg Flight Unit Improved Flight Unit Utility Hacking Suite Device Cooling System Storage Large Storage Unit Processor Signal Interpreter Hackware Hacking Suite Weapon Ion Cannon Energy Gun EM Pulse Gun Energy Cannon Ion Cannon Ballistic Gun Improved Assault Rifle Special Weapon Mining Laser Build | -11 -10 -10 -9 -9 ------- Run | Yrd Mat Min Mat Min Slots Evolved 2 | . . . 2 . Power . | . . . . . Propulsion . | . . . . . Utility 2 | . . . 2 . Weapon . | . . . . . Parts Attached 37 | 7 2 3 21 4 Power 5 | 1 . . 3 1 Engine 5 | 1 . . 3 1 Core . | . . . . . Reactor . | . . . . . Propulsion 12 | 4 . 2 5 1 Treads 9 | 2 . 2 4 1 Leg 2 | 2 . . . . Wheel . | . . . . . Hover . | . . . . . Flight 1 | . . . 1 . Utility 6 | 1 1 1 3 . Device 2 | . . . 2 . Storage 2 | 1 . 1 . . Processor 1 | . . . 1 . Hackware 1 | . 1 . . . Protection . | . . . . . Artifact . | . . . . . Weapon 14 | 1 1 . 10 2 Energy Gun 5 | 1 . . 2 2 Energy Cannon 7 | . . . 7 . Ballistic Gun 1 | . . . 1 . Ballistic Cannon . | . . . . . Launcher . | . . . . . Special Weapon 1 | . 1 . . . Impact Weapon . | . . . . . Slashing Weapon . | . . . . . Piercing Weapon . | . . . . . Special Melee Weapon . | . . . . . Unidentified Prototypes 4 | . . . 4 . Parts Lost 6 | . . . 2 4 Power 1 | . . . . 1 Propulsion 3 | . . . 1 2 Utility 1 | . . . . 1 Weapon 1 | . . . 1 . Highest Loss Streak 4 | . . . 2 4 To Critical Strikes . | . . . . . Average Slot Usage (%) 98 | . 85 100 97 97 Engine 12 | . 14 14 11 9 Treads 20 | . . 19 21 22 Leg 4 | . 28 8 . . Device 6 | . . . 11 9 Storage 12 | . 14 14 11 11 Processor 4 | . . . 8 11 Hackware 11 | . 2 14 11 11 Energy Gun 6 | . 14 14 . 13 Energy Cannon 11 | . . . 21 8 Special Weapon 6 | . 11 14 . . Peak Build Rating 23 | 5 9 9 23 22 Average Rating 15 | 2 6 9 20 20 On Entrance 8 | . 5 9 9 21 Naked Turns . | . . . . . Heaviest Build 41 | 12 13 28 41 37 Greatest Support 46 | 40 20 40 46 40 Greatest Overweight (x) 10 | . . . 1 10 Average Overweight (x) . | . . . . . Largest Inventory Capacity 15 | 8 8 15 15 15 Average Capacity 13 | 7 8 12 15 15 Most Carried 15 | 7 7 8 15 14 Average Carried 11 | 5 5 7 14 13 Final Capacity 15 | 8 8 15 15 15 Final Carried 14 | 5 6 8 14 13 Class Distribution -------------------- 100% | Mutant Dominant Class ---------------- Mutant | -10/Materials Mutant | -10/Mines Mutant | -9/Materials Mutant | -9/Mines Resources | -11 -10 -10 -9 -9 ----------- Run | Yrd Mat Min Mat Min Matter Collected 543 | 230 50 40 205 18 Remotely . | . . . . . Salvage Created 1720 | . 14 18 1647 41 Parts 123 | . 5 5 113 . Haulers Intercepted 5 | . . . 5 . Recyclers Shooed 1 | . . 1 . . Parts Field Recycled . | . . . . . Retrieved Matter . | . . . . . Parts Self-Destructed . | . . . . . Prevented . | . . . . . Kills | -11 -10 -10 -9 -9 ------- Run | Yrd Mat Min Mat Min Combat Hostiles Destroyed 38 | . . 2 33 3 Guns 3 | . . 1 . 2 Cannons 33 | . . . 32 1 AOE 1 | . . 1 . . Classes Destroyed 11 | . 1 1 8 1 Worker 2 | . . . 2 . Builder 2 | . . . 2 . Hauler 5 | . . . 5 . Operator 2 | . 1 . 1 . Watcher 4 | . . . 4 . Swarmer 13 | . . 2 11 . Grunt 11 | . . . 11 . Brawler 2 | . . . 2 . Duelist 2 | . . . 2 . Sentry 7 | . . . 7 . Assembled 3 | . . . . 3 Best Kill Streak 6 | . 1 2 6 3 Combat Bots Only 5 | . . 2 5 3 Max Kills in Single Turn 2 | . 1 1 2 1 Gunslinging . | . . . . . Exploded 1 | . . 1 . . Melee . | . . . . . Uniques/NPCs Destroyed . | . . . . . Combat | -11 -10 -10 -9 -9 -------- Run | Yrd Mat Min Mat Min Hostile Shots Fired 178 | . . 6 133 39 Missed 53 | . . 4 41 8 Damage Taken 1751 | . . 54 1031 666 Core 402 | . . . 246 156 Absorbed by Shields . | . . . . . Core Remaining (%) 100 | 100 . 100 . . Volleys Fired 113 | . 1 10 95 7 Largest 2 | . 1 1 2 2 Hottest 122 | . 40 40 120 122 Shots Fired 214 | . 1 10 189 14 Gun 21 | . 1 10 . 10 Cannon 193 | . . . 189 4 Launcher . | . . . . . Special . | . . . . . Kinetic . | . . . . . Thermal 203 | . . . 189 14 Explosive . | . . . . . Electromagnetic 11 | . 1 10 . . Robot Hit Streak 9 | . 1 4 9 3 Robot Miss Streak 4 | . . 3 4 2 Penetration Max . | . . . . . Secondary Targets . | . . . . . Shots Hit Robots 117 | . 1 5 105 6 Core Hits 57 | . 1 3 49 4 Critical Kills 2 | . . . 2 . Critical Parts Destroyed . | . . . . . Critical Strikes 2 | . . . 2 . Meltdown 2 | . . . 2 . Melee Attacks . | . . . . . Impact . | . . . . . Slashing . | . . . . . Piercing . | . . . . . Sneak Attacks . | . . . . . Combat Hostiles . | . . . . . Follow-up Attacks . | . . . . . Damage Inflicted 2966 | . 18 183 2643 122 Guns 191 | . 18 73 . 100 Cannons 2651 | . . . 2629 22 Explosions 94 | . . 94 . . Melee . | . . . . . Ramming 30 | . . 16 14 . Kinetic . | . . . . . Thermal 2845 | . . 94 2629 122 Explosive . | . . . . . Electromagnetic 91 | . 18 73 . . Impact . | . . . . . Slashing . | . . . . . Piercing . | . . . . . Highest Corruption . | . . . . . Average Corruption . | . . . . . Corruption Purged . | . . . . . Corruption Blocked . | . . . . . Overload Shots . | . . . . . Overflow Damage 25 | . . . 25 . Projectiles 25 | . . . 25 . Explosions . | . . . . . Melee . | . . . . . Knockbacks . | . . . . . Impact . | . . . . . Kinetic . | . . . . . Secondary . | . . . . . Self-Inflicted Damage 39 | . . 39 . . Shots 1 | . . 1 . . Rammed 4 | . . 2 2 . Targets Rammed 5 | . . 3 2 . Kicked 1 | . . 1 . . Crushed . | . . . . . Highest Temperature 72 | . . 12 29 72 Average Temperature 16 | . . 12 14 27 Received Heat Transfer 335 | . . . 315 20 Siege Activations . | . . . . . Robots Corrupted . | . . . . . Combat Hostiles . | . . . . . Parts Fried . | . . . . . Impact Corruptions . | . . . . . Robots Melted 2 | . . . 2 . Combat Hostiles 1 | . . . 1 . Parts Melted 8 | . . . 8 . Heat Transferred 4590 | . . 150 4218 222 Parts Sabotaged . | . . . . . Parts Stolen . | . . . . . Parts Stripped . | . . . . . Power Chain Reactions 1 | . . 1 . . Alert | -11 -10 -10 -9 -9 ------- Run | Yrd Mat Min Mat Min Peak Influence 769 | . 10 61 769 299 Initial 299 | . . 3 . 299 Average 182 | . 5 8 331 294 Maximum Alert Level 3 | . . . 3 1 Low Security (%) 56 | 100 100 100 21 . Level 1 26 | . . . 45 100 Level 2 14 | . . . 28 . Level 3 2 | . . . 4 . Level 4 . | . . . . . Level 5 . | . . . . . High Security . | . . . . . Max Security . | . . . . . Squads Dispatched 7 | . 1 . 6 . Investigation 3 | . 1 . 2 . Extermination . | . . . . . Reinforcement 3 | . . . 3 . Assault 1 | . . . 1 . Garrison . | . . . . . Intercept . | . . . . . Searches Triggered . | . . . . . Construction Impeded . | . . . . . Haulers Reinforced . | . . . . . Active Scanning Responses . | . . . . . Cargo Convoy Interrupts . | . . . . . Stealth | -11 -10 -10 -9 -9 --------- Run | Yrd Mat Min Mat Min Distress Signals 5 | . . . 5 . Communications Jammed . | . . . . . Distress Signals . | . . . . . Times Spotted 62 | . 1 2 47 12 Peak Tracking Total 11 | . 1 2 4 11 Tactical Retreats 2 | . . . 2 . Traps | -11 -10 -10 -9 -9 ------- Run | Yrd Mat Min Mat Min Traps Triggered . | . . . . . Indirectly . | . . . . . Trap Hack Attempts . | . . . . . Triggered . | . . . . . Disarmed 6 | . . . 6 . Reprogrammed . | . . . . . Reused . | . . . . . Traps Extracted . | . . . . . Installed . | . . . . . Triggered . | . . . . . Machines | -11 -10 -10 -9 -9 ---------- Run | Yrd Mat Min Mat Min Machines Disabled 4 | . . . 4 . Max in Single Turn 1 | . . . 1 . Machines Repaired . | . . . . . Machines Dismantled . | . . . . . Machines Sabotaged . | . . . . . Overloaded Fab Kills . | . . . . . Hacking | -11 -10 -10 -9 -9 --------- Run | Yrd Mat Min Mat Min Machines Accessed 12 | . 4 . 8 . Terminals 9 | . 4 . 5 . Fabricators . | . . . . . Repair Stations . | . . . . . Recycling Units 1 | . . . 1 . Scanalyzers 2 | . . . 2 . Garrison Access . | . . . . . Total Hacks 39 | . 11 . 28 . Successful 26 | . 4 . 22 . Failed 13 | . 7 . 6 . Catastrophic 2 | . 1 . 1 . Database Lockouts . | . . . . . Manual . | . . . . . Terminals 25 | . 11 . 14 . Fabricators . | . . . . . Repair Stations . | . . . . . Recycling Units 1 | . . . 1 . Scanalyzers 13 | . . . 13 . Garrison Access . | . . . . . Terminal Hacks 12 | . 4 . 8 . Prototype ID Bank 2 | . 1 . 1 . Emergency Access Points 1 | . . . 1 . Terminal Index 1 | . . . 1 . Scanalyzer Index 1 | . . . 1 . Locate Traps 2 | . 1 . 1 . Disarm Traps 1 | . . . 1 . Dispatch Records 2 | . 1 . 1 . Reinforcement Status 1 | . . . 1 . Zone Layout 1 | . 1 . . . Fabricator Hacks . | . . . . . Repair Station Hacks . | . . . . . Recycling Unit Hacks 1 | . . . 1 . Report Inventory 1 | . . . 1 . Scanalyzer 13 | . . . 13 . Insert Component 6 | . . . 6 . Analyze 7 | . . . 7 . Garrison Access Hacks . | . . . . . Unauthorized Hacks . | . . . . . Terminals . | . . . . . Fabricators . | . . . . . Repair Stations . | . . . . . Recycling Units . | . . . . . Scanalyzers . | . . . . . Garrison Access . | . . . . . Data Cores Recovered 1 | . 1 . . . Used . | . . . . . Hacking Detections 11 | . 3 . 8 . Full Trace Events 3 | . 1 . 2 . Feedback Events . | . . . . . Feedback Blocked . | . . . . . Robot Schematics Acquired . | . . . . . Robots Built . | . . . . . Authchips . | . . . . . Time . | . . . . . Total Robot Build Rating . | . . . . . Part Schematics Acquired 6 | . . . 6 . Parts Built . | . . . . . Authchips . | . . . . . Time . | . . . . . Total Part Build Rating . | . . . . . Parts Repaired . | . . . . . Time . | . . . . . Parts Recycled . | . . . . . Recycled Matter . | . . . . . Retrieved Matter . | . . . . . Retrieved Components . | . . . . . Parts Scanalyzed 6 | . . . 6 . Part Schematics Acquired 6 | . . . 6 . Parts Damaged . | . . . . . Bothacking | -11 -10 -10 -9 -9 ------------ Run | Yrd Mat Min Mat Min Used RIF Installer . | . . . . . Robots Hacked . | . . . . . Non-combat . | . . . . . Combat . | . . . . . Robot Hacks Applied . | . . . . . Relay Couplers Released . | . . . . . Fabnet Peak Effective % . | . . . . . Robots Rewired . | . . . . . Allies Hacked . | . . . . . Hacks Repelled . | . . . . . Allies | -11 -10 -10 -9 -9 -------- Run | Yrd Mat Min Mat Min Total Allies 2 | . . 2 . . Largest Group 2 | . . 2 2 . Highest-Rated Group 49 | . . 49 49 . Highest-Rated Ally 31 | . . 31 31 . Total Orders . | . . . . . Ally Attacks 29 | . . 1 28 . Total Damage 395 | . . . 395 . Kills 5 | . . . 5 . Allies Corrupted . | . . . . . Allies Melted . | . . . . . Intel | -11 -10 -10 -9 -9 ------- Run | Yrd Mat Min Mat Min Robot Analysis Total . | . . . . . Derelict Logs Recovered 1 | . . 1 . . Drone Launches . | . . . . . Drone Recoveries . | . . . . . Exploration | -11 -10 -10 -9 -9 ------------- Run | Yrd Mat Min Mat Min Turns Passed 3445 | 94 127 1352 1774 98 Spaces Moved 1968 | 60 101 900 864 43 Core 15 | 14 . . . 1 Treads 1540 | 37 . 597 864 42 Legs 413 | 9 101 303 . . Wheels . | . . . . . Hover . | . . . . . Flight . | . . . . . Fastest Speed 50 | 50 120 120 160 160 Average Speed 151 | 128 120 146 160 169 Slowest Speed 550 | 160 120 160 240 550 Overloaded Moves . | . . . . . Propulsion Burnouts . | . . . . . Robots Hopped . | . . . . . Cave-ins Triggered . | . . . . . Exploration Rate (%) 44 | 6 19 100 78 17 Regions Visited 4 Branch Regions 2 Pre-discovered Areas 1 | . . . . 1 Known Exits Taken 1 | . . . 1 . Unknown Exits Taken 3 | 1 1 1 . . Scrap Searched 1 | . . 1 . . Spaces Dug . | . . . . . Terrain Destroyed 26 | . . 2 23 1 Melee . | . . . . . Projectile 24 | . . . 23 1 AOE 2 | . . 2 . . Terrain Rammed . | . . . . . Walls Destroyed . | . . . . . Machines Disabled . | . . . . . Actions | -11 -10 -10 -9 -9 --------- Run | Yrd Mat Min Mat Min Total 2220 | 76 106 921 1063 54 Wait 46 | . . 2 44 . Move 1964 | 59 100 899 863 43 Hop . | . . . . . Pick Up 40 | 10 3 3 24 . Fast Attach . | . . . . . Attach 14 | 5 2 . 6 1 Detach . | . . . . . Swap 23 | 2 . 3 15 3 Drop 15 | . . 1 14 . Fire 113 | . 1 10 95 7 Melee . | . . . . . Ram . | . . . . . Kick 1 | . . 1 . . Crush 4 | . . 2 2 . Escape Stasis . | . . . . . Rewire . | . . . . . Trap . | . . . . . Miscellaneous . | . . . . . Route ------- -11/Scrapyard -10/Materials -10/Mines (discovered 3 exits: *Mat x2 / [*Sub]) -9/Materials (discovered 4 exits: *Mat x2 / *Min x2) -9/Mines History --------- Turn | Location | Event 8 | -11/Scrapyard | Discovered new exit (range 13) 95 | -11/Scrapyard | Entered Materials 143 | -10/Materials | Discovered new exit (range 14) 222 | -10/Materials | Entered Mines 234 | -10/Mines | Met a Derelict bent on vengeance 303 | -10/Mines | Build established: Mutant 322 | -10/Mines | Discovered new exit (range 5) 447 | -10/Mines | Found a hidden stash of uninstalled traps 606 | -10/Mines | Found DCF Scrap (10 items) 627 | -10/Mines | Discovered new exit (range 6) 628 | -10/Mines | Learned location of 1 exit from Materials 1481 | -10/Mines | Discovered new exit (range 5) 1574 | -10/Mines | Entered Materials 1574 | -9/Materials | Accompanied by 2 allies 1574 | -9/Materials | Evolved 2 slots: Utility x2 1575 | -9/Materials | Identified exit to Materials 1579 | -9/Materials | Led the pair of lost Derelicts to an unsafe place 2077 | -9/Materials | Discovered new exit (range 8) 2088 | -9/Materials | Identified exit to Mines 2742 | -9/Materials | Discovered exit to Materials (range 5) 2983 | -9/Materials | Discovered exit to Mines (range 13) 3174 | -9/Materials | First assault squad dispatched 3246 | -9/Materials | Core integrity fell below 50% 3348 | -9/Materials | Entered Mines 3349 | -9/Mines | Learned location of Storage (-8) 3392 | -9/Mines | Assembled infested the area 3397 | -9/Mines | Assisted by a Guerilla fighting off Assembled 3421 | -9/Mines | Core integrity fell below 20% 3446 | -9/Mines | Destroyed by D-53 Grenadier with Mini Grenade Launcher Last Messages --------------- FN-9TU(h): "I'll hold them off! Go on ahead or try to find another way!" HV Slug penetrates Wall. as-43937 suffers critical hit (Destroy). as-43937 destroyed. HV Slug penetrates as-89923. as-89923 suffers critical hit (Destroy). as-89923 destroyed. FN-9TU(h) destroyed. as-50996 destroyed. Imp. Ion Engine destroyed. as-88864 destroyed. Destroyed Asb. F-torch. as-80835 destroyed. as-26701 destroyed. Acquired 18 matter. Cooling System destroyed. The unstable cave ceiling collapses. Lgt. Treads destroyed. The unstable cave ceiling collapses. Map ----- +----------------------------------------------------+ | ???????????????????????? ???????????????????????? | | ??????????????????????## ???????????????????????? | | ????????????????????## ???????????????????????? | | ?????????????????#?## #??????????????????????? | | ???????????????? ## #?????????????????????? | | ????????????????? % ?????????????????????? | | ?????????????????? "#?????????????????????? | | ??????????????????? "#?????????????????????? | | ???????????????????? ##????????????????????? | | ????????????????????? % ##???????????????????? | | ?????????????????????? ##??????????????????? | | ??????????????????????# % ##?????????????????? | | ??????????????????????# ##????????????????? | | ???????????????????????# ##???????????????? | | ????????????????????????# #???????????????? | | ?????????????####???????#% ##??????????????? | | ????????????## ####???#= ##?????????????? | | ????????????# ##??# #?????????????? | | ????????????# #??# #?????????????? | | ????????????# #??## d #?????????????? | | ???????????## #??## ##?????????????? | | ??????????## #### d ## #??????????????? | | ?????????## ## #??????????????? | | ?????????# #####??????????????? | | ?????????# #?????????????????? | | ?????????## @ ##????????????????? | | ??????????###### ## ##???????????????? | | ???????????????####### #???????????????? | | ?????????????????????# # #???????????????? | | ?????????????????????## #???????????????? | | ??????????????????????## ##???????????????? | | ???????????????????????### ##????????????????? | | ??????????????????????????# ####?????????????????? | | ???????????????????????????#?????????????????????? | | | | | | | | | | | | | | | | | | | | | | | | | | | | | | | | | +----------------------------------------------------+ Best States ------------- Heat Dissipation 60 Energy Generation 12 Energy Capacity 265 Matter Stores 300 Matter Capacity 300 Sight Range 16 Terrain Scan Density 10 Evasion (%) 55 Recoil Reduction 2 Offensive Hacking 10 Item Schematics ----------------- Ion Cannon | -9/Materials | Scanalyzed Adv. Beam Rifle | -9/Materials | Scanalyzed Med. Armor Plating | -9/Materials | Scanalyzed Rnf. Ion Engine | -9/Materials | Scanalyzed Datajack | -9/Materials | Scanalyzed Lgt. Treads | -9/Materials | Scanalyzed Robot Schematics ------------------ None Fabricated ------------ Nothing Alien Tech Used ----------------- None Achievements -------------- None Challenges ------------ None Game ------ Seed NavigationMiniThermoblaster Manual? 0 Play Time 00:37:33 Cumulative 10.6 hours Start 2024.11.16 @ 18:45:36 End 2024.11.16 @ 19:50:56 Sessions 1 Manual Loads 0 Difficulty Rogue Special Mode None Game No. 12 Rogue 12 Adventurer 0 Explorer 0 Win Type - Total 0 Types 0/0/0/0/0/0/0/0/0 Lore% 10 Gallery% 11 Achievement% 14 Wizard Run 0 Options --------- Layout 1 ASCII 0 Keyboard 0 Movement Mouse Keybinds 0 Fullscreen 1 Font 48/Smallcaps Map View 50x35 Zoom Use 0% Tactical HUD 0 Map Filters NONE Filters NONE Steam 1 RUN: e463b2b6-d81c-46f8-8c2f-af7bc84fccf9